lending/lending_fUSD_20250130
["ID","MTS","AMOUNT","RATE_DAILY","PERIOD"]
[350944524,1738224646073,-589.06,0.00021369,4]
[350944525,1738224646083,-500.0,0.00021369,4]
[350944526,1738224646092,-589.06,0.00021369,4]
[350944527,1738224646101,-500.0,0.00021369,4]
[350944528,1738224646110,-500.0,0.00021369,4]
[350944529,1738224646119,-589.06,0.00021369,4]
[350944530,1738224646128,-500.0,0.00021369,4]
[350944531,1738224646138,-669.65,0.00021369,4]
[350944532,1738224646147,-510.1132475,0.00021369,4]
[350944533,1738224646157,-669.65,0.00021369,4]
[350944534,1738224646167,-669.65,0.00021369,4]
[350944535,1738224646176,-669.65,0.00021369,4]
[350944536,1738224646186,-669.65,0.00021369,4]
[350944537,1738224646196,-373.82593608,0.00021369,4]
[350944538,1738224646206,-500.96885743,0.00021369,4]
[350944539,1738224646216,-500.0,0.00021369,4]
[350944540,1738224646226,-500.0,0.00021369,4]
[350944541,1738224646236,-500.0,0.00021369,4]
[350944542,1738224646247,-500.0,0.00021369,4]
[350944543,1738224646257,-500.0,0.00021369,4]
[350944544,1738224646267,-1104.93,0.00021369,4]
[350944545,1738224646277,-1104.93,0.00021369,4]
[350944546,1738224646286,-1104.93,0.00021369,4]
[350944547,1738224646296,-501.73758424,0.00021369,4]
[350944548,1738224646306,-1104.93,0.00021369,4]
[350944549,1738224646316,-1104.93,0.00021369,4]
[350944550,1738224646326,-500.0,0.00021369,4]
[350944551,1738224646335,-1487.34,0.00021369,4]
[350944552,1738224646346,-500.0,0.00021369,4]
[350944553,1738224646355,-1487.34,0.00021369,4]
[350944554,1738224646365,-500.0,0.00021369,4]
[350944555,1738224646375,-1487.34,0.00021369,4]
[350944556,1738224646385,-500.0,0.00021369,4]
[350944557,1738224646394,-1487.34,0.00021369,4]
[350944558,1738224646404,-500.0,0.00021369,4]
[350944559,1738224646414,-1487.34,0.00021369,4]
[350944560,1738224646424,-501.3207919,0.00021369,4]
[350944561,1738224646434,-500.0,0.00021369,4]
[350944562,1738224646445,-500.0,0.00021369,4]
[350944563,1738224646457,-500.0,0.00021369,4]
[350944564,1738224646466,-1266.68,0.00021369,4]
[350944565,1738224646476,-507.65434859,0.00021369,4]
[350944566,1738224646486,-1266.68,0.00021369,4]
[350944567,1738224646496,-1266.68,0.00021369,4]
[350944568,1738224646506,-383.63351571,0.00021369,4]
[350944569,1738224646833,-883.04648429,0.00021369,4]
[350944570,1738224646842,-1266.68,0.00021369,4]
[350944571,1738224646852,-449.0528733,0.00021369,4]
[350944572,1738224646862,-500.0,0.00021369,4]
[350944573,1738224646872,-500.0,0.00021369,4]
[350944574,1738224646881,-500.0,0.00021369,4]
[350944575,1738224646891,-500.0,0.00021369,4]
[350944576,1738224646900,-500.0,0.00021369,4]
[350944577,1738224646910,-500.0,0.00021369,4]
[350944578,1738224646920,-500.0,0.00021369,4]
[350944579,1738224646930,-259.65,0.00021369,4]
[350944580,1738224646939,-500.58724481,0.00021369,4]
[350944581,1738224646949,-500.0,0.00021369,4]
[350944582,1738224646959,-500.0,0.00021369,4]
[350944583,1738224646968,-421.51405033,0.00021369,4]
[350944584,1738224646980,-78.48594967,0.00021369,4]
[350944585,1738224646990,-182.71854954,0.00021369,4]
[350944586,1738224647327,-317.28145046,0.00021369,4]
[350944587,1738224647337,-500.0,0.00021369,4]
[350944588,1738224647347,-500.68486819,0.00021369,4]
[350944589,1738224647357,-500.0,0.00021369,4]
[350944590,1738224647367,-500.0,0.00021369,4]
[350944591,1738224647377,-500.0,0.00021369,4]
[350944592,1738224647386,-500.0,0.00021369,4]
[350944593,1738224647396,-500.0,0.00021369,4]
[350944594,1738224647407,-500.0,0.00021369,4]
[350944595,1738224647416,-505.98373294,0.00021369,4]
[350944596,1738224647426,-500.0,0.00021369,4]
[350944597,1738224647436,-500.0,0.00021369,4]
[350944598,1738224647447,-500.0,0.00021369,4]
[350944599,1738224647461,-500.0,0.00021369,4]
[350944600,1738224647471,-500.7131473,0.00021369,4]
[350944601,1738224647481,-500.0,0.00021369,4]
[350944602,1738224647491,-500.0,0.00021369,4]
[350944603,1738224647503,-500.0,0.00021369,4]
[350944604,1738224647512,-500.0,0.00021369,4]
[350944605,1738224647522,-282.62723607,0.00021369,4]
[350944606,1738224647533,-500.0,0.00021369,4]
[350944607,1738224647543,-500.0,0.00021369,4]
[350944608,1738224647553,-500.0,0.00021369,4]
[350944609,1738224647563,-500.0,0.00021369,4]
[350944610,1738224647573,-500.0,0.00021369,4]
[350944611,1738224647583,-500.0,0.00021369,4]
[350944612,1738224647592,-500.0,0.00021369,4]
[350944613,1738224647602,-500.0,0.00021369,4]
[350944614,1738224647611,-500.0,0.00021369,4]
[350944615,1738224647621,-500.0,0.00021369,4]
[350944616,1738224647631,-500.0,0.00021369,4]
[350944617,1738224647641,-500.0,0.00021369,4]
[350944618,1738224647652,-500.0,0.00021369,4]
[350944619,1738224647661,-500.0,0.00021369,4]
[350944620,1738224647672,-500.0,0.00021369,4]
[350944621,1738224647681,-500.0,0.00021369,4]
[350944622,1738224647691,-500.0,0.00021369,4]
[350944623,1738224647710,-500.0,0.00021369,4]
[350944624,1738224647720,-500.0,0.00021369,4]
[350944625,1738224647730,-516.28509488,0.00021369,4]
[350944626,1738224647740,-500.0,0.00021369,4]
[350944627,1738224647750,-500.0,0.00021369,4]
[350944628,1738224647760,-500.0,0.00021369,4]
[350944629,1738224647770,-500.0,0.00021369,4]
[350944630,1738224647781,-500.0,0.00021369,4]
[350944631,1738224647792,-500.0,0.00021369,4]
[350944632,1738224647802,-500.0,0.00021369,4]
[350944633,1738224647812,-500.0,0.00021369,4]
[350944634,1738224647822,-500.0,0.00021369,4]
[350944635,1738224647832,-177.83075214,0.00021369,4]
[350944636,1738224647842,-641.30111532,0.00021369,4]
[350944637,1738224647851,-500.0,0.00021369,4]
[350944638,1738224647861,-369.39,0.00021369,4]
[350944639,1738224647871,-500.0,0.00021369,4]
[350944640,1738224647882,-500.0,0.00021369,4]
[350944641,1738224647892,-500.0,0.00021369,4]
[350944642,1738224647903,-500.0,0.00021369,4]
[350944643,1738224647912,-500.0,0.00021369,4]
[350944644,1738224647922,-500.0,0.00021369,4]
[350944645,1738224647932,-500.0,0.00021369,4]
[350944646,1738224647942,-500.0,0.00021369,4]
[350944647,1738224647952,-500.0,0.00021369,4]
[350944648,1738224647963,-457.78732308,0.00021369,4]
[350944649,1738224647973,-500.0,0.00021369,4]
[350944650,1738224647983,-500.0,0.00021369,4]
[350944651,1738224647992,-500.0,0.00021369,4]
[350944652,1738224648003,-502.13386779,0.00021369,4]
[350944653,1738224648013,-500.0,0.00021369,4]
[350944654,1738224648024,-500.0,0.00021369,4]
[350944655,1738224648034,-500.0,0.00021369,4]
[350944656,1738224648044,-500.0,0.00021369,4]
[350944657,1738224648054,-500.0,0.00021369,4]
[350944658,1738224648064,-500.0,0.00021369,4]
[350944659,1738224648074,-500.0,0.00021369,4]
[350944660,1738224648085,-274.58042911,0.00021369,4]
[350944661,1738224648098,-225.41957089,0.00021369,4]
[350944662,1738224648109,-1705.95,0.00021369,4]
[350944663,1738224648119,-1705.95,0.00021369,4]
[350944664,1738224648128,-1705.95,0.00021369,4]
[350944665,1738224648139,-142.85115218,0.00021369,4]
[350944666,1738224648156,-1126.03929974,0.00021369,4]
[350944667,1738224648168,-437.05954808,0.00021369,4]
[350944668,1738224648178,-1705.95,0.00021369,4]
[350944669,1738224648188,-349.51831896,0.00021369,4]
[350944670,1738224648322,-150.48168104,0.00021369,4]
[350944671,1738224648332,-419.88207463,0.00021369,4]
[350944672,1738224648345,-80.11792537,0.00021369,4]
[350944673,1738224648356,-500.0,0.00021369,4]
[350944674,1738224648367,-473.38207463,0.00021369,4]
[350944675,1738224648407,-76.40206317,0.00021369,4]
[350944676,1738224648603,-500.0,0.00021369,4]
[350944677,1738224648613,-27.83808982,0.00021369,4]
[350944678,1738224649004,-389.999951,0.00021369,4]
[350944679,1738224649015,-82.16195918,0.00021369,4]
[350944680,1738224649024,-173.3060124,0.00021369,4]
[350944681,1738224649234,-500.0,0.00021169,2]
[350944682,1738224649244,-411.92999283,0.00021369,4]
[350944683,1738224649253,-1000.0,0.00021369,4]
[350944684,1738224649263,-500.0,0.00021369,4]
[350944685,1738224649273,-1000.0,0.00021369,4]
[350944686,1738224649283,-500.0,0.00021369,4]
[350944687,1738224649293,-1000.0,0.00021369,4]
[350944688,1738224649303,-500.0,0.00021369,4]
[350944689,1738224649312,-1000.0,0.00021369,4]
[350944690,1738224649322,-500.0,0.00021369,4]
[350944691,1738224649332,-500.0,0.00021369,4]
[350944692,1738224649342,-1000.0,0.00021369,4]
[350944693,1738224649351,-1000.0,0.00021369,4]
[350944694,1738224649360,-500.0,0.00021369,4]
[350944695,1738224649370,-1000.0,0.00021369,4]
[350944696,1738224649380,-500.0,0.00021369,4]
[350944697,1738224649390,-500.0,0.00021369,4]
[350944698,1738224649400,-628.52404394,0.00021369,4]
[350944699,1738224649410,-500.0,0.00021369,4]
[350944700,1738224649419,-500.0,0.00021369,4]
[350944701,1738224649430,-500.0,0.00021369,4]
[350944702,1738224649440,-500.0,0.00021369,4]
[350944703,1738224649451,-500.0,0.00021369,4]
[350944704,1738224649462,-500.0,0.00021369,4]
[350944705,1738224649471,-587.10657979,0.00021369,4]
[350944706,1738224649480,-500.0,0.00021369,4]
[350944707,1738224649491,-500.0,0.00021369,4]
[350944708,1738224649500,-500.0,0.00021369,4]
[350944709,1738224649509,-500.0,0.00021369,4]
[350944710,1738224649519,-500.0,0.00021369,4]
[350944711,1738224649528,-500.0,0.00021369,4]
[350944712,1738224649539,-2172.3,0.00021369,4]
[350944713,1738224649550,-500.0,0.00021369,4]
[350944714,1738224649559,-500.0,0.00021369,4]
[350944715,1738224649569,-2172.3,0.00021369,4]
[350944716,1738224649579,-500.0,0.00021369,4]
[350944717,1738224649588,-500.0,0.00021369,4]
[350944718,1738224649598,-2172.3,0.00021369,4]
[350944719,1738224649608,-2172.3,0.00021369,4]
[350944720,1738224649618,-570.23712498,0.00021369,4]
[350944721,1738224649628,-2172.3,0.00021369,4]
[350944722,1738224649639,-500.0,0.00021369,4]
[350944723,1738224649650,-500.0,0.00021369,4]
[350944724,1738224649664,-500.0,0.00021369,4]
[350944725,1738224649673,-500.0,0.00021369,4]
[350944726,1738224649683,-500.0,0.00021369,4]
[350944727,1738224649692,-500.0,0.00021369,4]
[350944728,1738224649703,-500.0,0.00021369,4]
[350944729,1738224649713,-816.52,0.00021369,4]
[350944730,1738224649724,-500.0,0.00021369,4]
[350944731,1738224649736,-816.52,0.00021369,4]
[350944732,1738224649746,-500.0,0.00021369,4]
[350944733,1738224649756,-816.52,0.00021369,4]
[350944734,1738224649765,-500.0,0.00021369,4]
[350944735,1738224649777,-816.52,0.00021369,4]
[350944736,1738224649787,-500.0,0.00021369,4]
[350944737,1738224649796,-816.52,0.00021369,4]
[350944738,1738224649806,-596.80425629,0.00021369,2]
[350944739,1738224649816,-500.0,0.00021369,4]
[350944740,1738224649828,-500.0,0.00021369,4]
[350944741,1738224649837,-500.0,0.00021369,4]
[350944742,1738224649847,-500.0,0.00021369,4]
[350944743,1738224649858,-500.0,0.00021369,4]
[350944744,1738224649868,-500.0,0.00021369,4]
[350944745,1738224649880,-500.0,0.00021369,4]
[350944746,1738224649890,-500.0,0.00021369,4]
[350944747,1738224649899,-500.0,0.00021369,4]
[350944748,1738224649910,-1464.21,0.00021369,4]
[350944749,1738224649920,-500.0,0.00021369,4]
[350944750,1738224649931,-1464.21,0.00021369,4]
[350944751,1738224649942,-500.0,0.00021369,4]
[350944752,1738224649952,-1464.21,0.00021369,4]
[350944753,1738224649963,-500.0,0.00021369,4]
[350944754,1738224649972,-1313.48375746,0.00021369,4]
[350944755,1738224649984,-150.72624254,0.00021369,4]
[350944756,1738224649994,-500.0,0.00021369,4]
[350944757,1738224650003,-1464.21,0.00021369,4]
[350944758,1738224650012,-255.06375746,0.00021369,4]
[350944759,1738224768800,229.35,0.00010137,2]
[350944775,1738225562816,6560.32698623,0.0001,2]
[350944781,1738225602179,708.60669133,0.00023,120]
[350944783,1738225650638,2492.0776814,0.000102,2]
[350944784,1738225660685,277.30215658,0.0001,2]
[350944786,1738225677638,11461.20511836,0.0001,2]
[350944787,1738225681486,278618.07805743,0.0001,2]
[350944788,1738225681518,100000.0,0.0001,2]
[350944789,1738225681546,174.53176598,0.0001,2]
[350944790,1738225681570,400.0,0.0001,2]
[350944803,1738225757295,23996.45547527,0.00023,120]
[350944815,1738225831675,-300.0,9.999e-05,2]
[350944816,1738225831684,-10.529994,0.0001,2]
[350944817,1738225831841,-1075.63162863,0.0001,2]
[350944848,1738225837666,-998.74204023,0.0001,2]
[350944849,1738225837724,-19847.4,0.0001,2]
[350944850,1738225837781,-86423.10359331,0.0001,2]
[350944851,1738225837791,-150.0,0.00010989,2]
[350944852,1738225837800,-150.0,0.00010999,2]
[350944853,1738225837810,-524.69702,0.00010999,2]
[350944854,1738225837819,-420.0,0.00010999,2]
[350944855,1738225837828,-151.14608076,0.00011973,2]
[350944856,1738225837840,-89906.83964149,0.00012,2]
[350944857,1738225837858,-4705.87331267,0.00012,2]
[350944858,1738225837869,-288.11888649,0.00012,2]
[350944859,1738225837882,-318923.45352208,0.00012,2]
[350944860,1738225837892,-587.0,0.00012099,2]
[350944861,1738225837901,-220.83330434,0.00012972,2]
[350944862,1738225837911,-165.75423728,0.00013072,2]
[350944863,1738225837920,-250.0,0.00013212,2]
[350944864,1738225837929,-383.0,0.00013309,2]
[350944865,1738225837938,-220.83330427,0.00013824,2]
[350944866,1738225837947,-165.75423726,0.00014586,2]
[350944867,1738225837958,-220.83330427,0.00014676,2]
[350944869,1738225837967,-456.40142226,0.000149,2]
[350944871,1738225837977,-13499.02396669,0.00015,2]
[350944873,1738225837986,-14903.78110553,0.00015,2]
[350944875,1738225837997,-456.40142198,0.00015141,2]
[350944877,1738225838008,-456.40142198,0.00015383,2]
[350944879,1738225838019,-220.83330427,0.00015529,2]
[350944881,1738225838029,-456.40142198,0.00015624,2]
[350944883,1738225838038,-456.40142198,0.00015866,2]
[350944885,1738225838047,-165.75423726,0.000161,2]
[350944887,1738225838058,-456.40142198,0.00016107,2]
[350944889,1738225838067,-456.40142198,0.00016348,2]
[350944891,1738225838077,-220.83330427,0.00016381,2]
[350944893,1738225838087,-456.40142198,0.0001659,2]
[350944895,1738225838097,-229.35,0.00016813,2]
[350944897,1738225838107,-456.40142198,0.00016831,2]
[350944900,1738225838117,-456.40142198,0.00017072,2]
[350944904,1738225838126,-220.83330427,0.00017233,2]
[350944906,1738225838137,-456.40142198,0.00017314,2]
[350944908,1738225838146,-976.16,0.00017342,2]
[350944910,1738225838155,-456.40142198,0.00017555,2]
[350944912,1738225838164,-165.75423726,0.00017614,2]
[350944914,1738225838174,-456.40142198,0.00017797,2]
[350944916,1738225838185,-456.40142198,0.00018038,2]
[350944918,1738225838194,-220.83330427,0.00018085,2]
[350944920,1738225838203,-2980.0,0.00018251,2]
[350944922,1738225838213,-456.40142198,0.00018279,2]
[350944924,1738225838222,-456.40142198,0.00018521,2]
[350944926,1738225838231,-456.40142198,0.00018762,2]
[350944928,1738225838241,-3841.0,0.000188,5]
[350944930,1738225838250,-1952.307,0.00018828,2]
[350944932,1738225838259,-3290.96392316,0.000189,2]
[350944934,1738225838269,-192.31343711,0.000189,2]
[350944936,1738225838278,-174.5429919,0.00018904,2]
[350944938,1738225838288,-220.83330427,0.00018938,2]
[350944940,1738225838297,-1002.49815364,0.00018999,5]
[350944942,1738225838306,-846.83896482,0.00018999,2]
[350944944,1738225838315,-43477.89624753,0.00019,2]
[350944946,1738225838324,-7591.85274526,0.00019,2]
[350944948,1738225838333,-515006.69802082,0.00019,2]
[350944949,1738225838343,-2226.74230476,0.00019,2]
[350944951,1738225838353,-456.40142198,0.00019003,2]
[350944953,1738225838362,-340.42856214,0.0001901,7]
[350944955,1738225838371,-1000.0,0.0001902,2]
[350944957,1738225838380,-3290.96392308,0.00019094,2]
[350944959,1738225838390,-5069.01549963,0.0001911,2]
[350944961,1738225838399,-165.75423726,0.00019128,2]
[350944964,1738225838409,-500.0,0.00019164,2]
[350944966,1738225838418,-500.0,0.00019164,2]
[350944968,1738225838427,-99395.92713042,0.0001917,2]
[350944970,1738225838436,-150.26,0.00019178,2]
[350944972,1738225838445,-456.40142198,0.00019245,2]
[350944974,1738225838455,-3290.96392308,0.00019287,2]
[350944975,1738225838467,-1000.0,0.00019292,2]
[350944978,1738225838477,-121645.29580997,0.000193,2]
[350944980,1738225838487,-151.88,0.00019324,2]
[350944982,1738225838496,-17518.1,0.0001938,2]
[350944984,1738225838506,-161.11,0.00019414,2]
[350944986,1738225838515,-3290.96392308,0.00019481,2]
[350944988,1738225838524,-456.40142198,0.00019486,2]
[350944990,1738225838534,-160.9,0.00019527,2]
[350944992,1738225838543,-976.16,0.00019606,2]
[350944994,1738225838553,-15461.52668418,0.00019663,2]
[350944996,1738225838562,-14428.43255343,0.00019665,2]
[350944998,1738225838571,-211.24316684,0.00019669,2]
[350945000,1738225838580,-14428.43255343,0.00019674,2]
[350945002,1738225838591,-15461.52668418,0.00019674,2]
[350945004,1738225838600,-3290.96392308,0.00019674,2]
[350945006,1738225838610,-200.0,0.00019676,2]
[350945008,1738225838619,-200.0,0.00019676,2]
[350945009,1738225838629,-2265.21158783,0.00019679,2]
[350945011,1738225838639,-74412.09632169,0.00019681,2]
[350945012,1738225838648,-1132.60579392,0.00019684,2]
[350945013,1738225838658,-86091.95207584,0.00019685,2]
[350945014,1738225838667,-8795.66485024,0.00019685,2]
[350945015,1738225838678,-500.55058083,0.00019693,2]
[350945016,1738225838687,-200.0,0.00019696,2]
[350945017,1738225838698,-1232.60579392,0.00019706,2]
[350945018,1738225838707,-211.24316684,0.00019713,2]
[350945019,1738225838716,-380.32,0.00019714,2]
[350945020,1738225838726,-86091.95207584,0.00019717,2]
[350945021,1738225838736,-15461.52668418,0.00019723,2]
[350945022,1738225838746,-456.40142198,0.00019728,2]
[350945023,1738225838755,-2265.21158783,0.00019728,2]
[350945024,1738225838765,-500.55058083,0.0001973,2]
[350945025,1738225838774,-8795.66485024,0.00019734,2]
[350945026,1738225838784,-211.24316684,0.00019737,2]
[350945027,1738225838793,-1132.60579392,0.00019741,2]
[350945028,1738225838803,-1232.60579392,0.00019745,2]
[350945029,1738225838812,-74412.09632169,0.00019745,2]
[350945030,1738225838822,-500.55058083,0.0001975,2]
[350945031,1738225838831,-500.55058083,0.00019754,2]
[350945032,1738225838844,-1132.60579392,0.00019754,2]
[350945033,1738225838853,-86091.95207584,0.00019755,2]
[350945034,1738225838863,-1132.60579392,0.00019759,2]
[350945035,1738225838872,-74412.09632169,0.0001976,2]
[350945036,1738225838883,-2265.21158783,0.00019769,2]
[350945037,1738225838893,-2265.21158783,0.00019771,2]
[350945038,1738225838902,-14428.43255343,0.00019773,2]
[350945039,1738225838912,-15461.52668418,0.00019774,2]
[350945040,1738225838923,-211.24316684,0.00019774,2]
[350945041,1738225838933,-8795.66485024,0.00019776,2]
[350945042,1738225838942,-86091.95207584,0.00019779,2]
[350945043,1738225838951,-1232.60579392,0.00019779,2]
[350945044,1738225838960,-74412.09632169,0.0001978,2]
[350945045,1738225838970,-8795.66485024,0.00019787,2]
[350945046,1738225838980,-1232.60579392,0.00019789,2]
[350945047,1738225838989,-14428.43255343,0.00019797,2]
[350945048,1738225838998,-150.26,0.00019817,2]
[350945049,1738225839008,-3290.96392308,0.00019868,2]
[350945050,1738225839018,-4254.14556483,0.00019876,2]
[350945051,1738225839027,-456.40142198,0.00019969,2]
[350945052,1738225839037,-250.0,0.00020002,2]
[350945053,1738225839046,-209.27,0.00020003,2]
[350945054,1738225839055,-670.33,0.00020016,2]
[350945055,1738225839064,-151.88,0.00020039,2]
[350945056,1738225839073,-3290.96392308,0.00020061,2]
[350945057,1738225839083,-241.73,0.00020085,2]
[350945058,1738225839092,-666.0,0.00020144,2]
[350945059,1738225839102,-14326.82,0.00020145,2]
[350945060,1738225839111,-4375.29,0.00020145,2]
[350945061,1738225839120,-299.99,0.00020145,7]
[350945062,1738225839129,-9999.99,0.00020145,2]
[350945063,1738225839138,-150.99,0.00020145,2]
[350945064,1738225839147,-930.84,0.00020145,2]
[350945065,1738225839156,-150.99,0.00020145,2]
[350945066,1738225839165,-999.99,0.00020145,2]
[350945067,1738225839174,-9999.99,0.00020145,2]
[350945068,1738225839183,-2127.03,0.00020145,2]
[350945069,1738225839192,-499.99,0.00020145,2]
[350945070,1738225839201,-9999.99,0.00020145,2]
[350945071,1738225839212,-456.40142198,0.0002021,2]
[350945072,1738225839222,-3290.96392308,0.00020255,2]
[350945073,1738225839231,-500.0,0.0002026,2]
[350945074,1738225839240,-150.0,0.00020332,2]
[350945079,1738225839457,-152.0,0.0002036,3]
[350945080,1738225839468,-3290.96392308,0.00020448,2]
[350945081,1738225839478,-456.40142198,0.00020452,2]
[350945082,1738225839487,-4000.0,0.00020455,2]
[350945083,1738225839496,-150.26,0.00020457,2]
[350945084,1738225839506,-11406.9223476,0.00020498,2]
[350945085,1738225839515,-666.0,0.00020499,2]
[350945086,1738225839524,-995359.29051548,0.000205,2]
[350945087,1738225839534,-588509.31017896,0.000205,2]
[350945088,1738225839543,-4696.61,0.000205,2]
[350945089,1738225839552,-998.4994,0.000206,2]
[350945090,1738225839561,-5000.0,0.000206,2]
[350945091,1738225839571,-55555.0,0.000206,2]
[350945092,1738225839579,-409.22793929,0.000206,2]
[350945093,1738225839589,-409.22793929,0.000206,2]
[350945094,1738225839598,-409.22793929,0.000206,2]
[350945095,1738225839607,-409.22793929,0.000206,2]
[350945096,1738225839617,-409.22793929,0.000206,2]
[350945097,1738225839626,-409.22793929,0.000206,2]
[350945098,1738225839635,-409.22793929,0.000206,2]
[350945099,1738225839644,-409.22793929,0.000206,2]
[350945100,1738225839654,-409.22793929,0.000206,2]
[350945101,1738225839663,-409.22793929,0.000206,2]
[350945102,1738225839673,-409.22793929,0.000206,2]
[350945103,1738225839683,-409.22793929,0.000206,2]
[350945104,1738225839692,-409.22793929,0.000206,2]
[350945105,1738225839701,-409.22793929,0.000206,2]
[350945106,1738225839711,-409.22793929,0.000206,2]
[350945107,1738225839720,-409.22793929,0.000206,2]
[350945108,1738225839731,-409.22793929,0.000206,2]
[350945109,1738225839740,-409.22793929,0.000206,2]
[350945110,1738225839750,-409.22793929,0.000206,2]
[350945111,1738225839759,-409.22,0.000206,2]
[350945112,1738225839768,-1066.47785105,0.000206,2]
[350945113,1738225839778,-1066.47785105,0.000206,2]
[350945114,1738225839787,-1066.47785105,0.000206,2]
[350945115,1738225839797,-1066.47785105,0.000206,2]
[350945116,1738225839806,-1066.47785105,0.000206,2]
[350945117,1738225839815,-1066.47785105,0.000206,2]
[350945118,1738225839824,-1066.47785105,0.000206,2]
[350945119,1738225839834,-1066.47785105,0.000206,2]
[350945120,1738225839848,-1066.47785105,0.000206,2]
[350945121,1738225839858,-1066.47785105,0.000206,2]
[350945122,1738225839867,-1066.47785105,0.000206,2]
[350945123,1738225839876,-1066.47785105,0.000206,2]
[350945124,1738225839887,-1066.47785105,0.000206,2]
[350945125,1738225839896,-1066.47785105,0.000206,2]
[350945126,1738225839905,-1066.47785105,0.000206,2]
[350945127,1738225839914,-1066.47785105,0.000206,2]
[350945128,1738225839924,-1066.47785105,0.000206,2]
[350945129,1738225839934,-1066.47785105,0.000206,2]
[350945130,1738225839943,-1066.47785105,0.000206,2]
[350945131,1738225839952,-1066.47,0.000206,2]
[350945132,1738225839961,-572.5859251,0.000206,2]
[350945133,1738225839971,-572.5859251,0.000206,2]
[350945134,1738225839980,-572.5859251,0.000206,2]
[350945135,1738225839989,-572.5859251,0.000206,2]
[350945136,1738225839998,-572.5859251,0.000206,2]
[350945137,1738225840008,-572.5859251,0.000206,2]
[350945138,1738225840018,-572.5859251,0.000206,2]
[350945139,1738225840027,-572.5859251,0.000206,2]
[350945140,1738225840036,-572.5859251,0.000206,2]
[350945141,1738225840045,-572.5859251,0.000206,2]
[350945142,1738225840054,-572.5859251,0.000206,2]
[350945143,1738225840064,-572.5859251,0.000206,2]
[350945144,1738225840073,-572.5859251,0.000206,2]
[350945145,1738225840082,-572.5859251,0.000206,2]
[350945147,1738225840092,-572.5859251,0.000206,2]
[350945148,1738225840101,-572.5859251,0.000206,2]
[350945149,1738225840110,-572.5859251,0.000206,2]
[350945150,1738225840119,-572.5859251,0.000206,2]
[350945151,1738225840128,-572.5859251,0.000206,2]
[350945152,1738225840138,-572.58,0.000206,2]
[350945153,1738225840147,-3290.96392308,0.00020642,2]
[350945154,1738225840156,-165.75423726,0.00020642,2]
[350945155,1738225840165,-4698.99184153,0.00020642,2]
[350945156,1738225840174,-1751.15924692,0.00020659,2]
[350945158,1738225840184,-150.0,0.00020685,4]
[350945160,1738225840193,-150.0,0.00020685,4]
[350945161,1738225840202,-150.0,0.00020685,4]
[350945162,1738225840211,-150.0,0.00020685,4]
[350945163,1738225840221,-456.40142198,0.00020693,2]
[350945164,1738225840230,-300.0,0.00020698,2]
[350945165,1738225840239,-666.0,0.00020698,2]
[350945166,1738225840249,-666.0,0.00020699,2]
[350945167,1738225840257,-999.0,0.00020699,2]
[350945168,1738225840268,-305.13750033,0.00020699,2]
[350945169,1738225840277,-666.0,0.00020699,2]
[350945170,1738225840286,-666.0,0.00020699,2]
[350945171,1738225840295,-380.32,0.000207,2]
[350945172,1738225840304,-77719.01617249,0.000207,2]
[350945173,1738225840314,-402.40691147,0.000207,2]
[350945174,1738225840325,-241.44414688,0.000207,2]
[350945175,1738225840334,-6228.87010034,0.000207,2]
[350945176,1738225840345,-546.0,0.000207,2]
[350945177,1738225840354,-1635769.1104158,0.000207,30]
[350945178,1738225840570,-220.83330427,0.0001979,2]